fUST/lending_fUST_20260525
["ID","MTS","AMOUNT","RATE_DAILY","PERIOD"]
[422987471,1779713440000,-500.0,8.219e-05,2]
[422987461,1779713440000,-500.0,8.219e-05,2]
[422987442,1779713440000,-500.0,8.219e-05,2]
[422987474,1779713440000,-500.0,8.219e-05,2]
[422987454,1779713440000,-500.0,8.219e-05,2]
[422987427,1779713440000,-500.0,8.219e-05,2]
[422987407,1779713440000,-500.0,8.219e-05,2]
[422987422,1779713440000,-500.0,8.219e-05,2]
[422987465,1779713440000,-500.0,8.219e-05,2]
[422987390,1779713440000,-500.0,8.219e-05,2]
[422987394,1779713440000,-500.0,8.219e-05,2]
[422987391,1779713440000,-500.0,8.219e-05,2]
[422987389,1779713440000,-500.0,8.219e-05,2]
[422987388,1779713440000,-500.0,8.219e-05,2]
[422987393,1779713440000,-500.0,8.219e-05,2]
[422987392,1779713440000,-500.0,8.219e-05,2]
[422987396,1779713440000,-500.0,8.219e-05,2]
[422987395,1779713440000,-500.0,8.219e-05,2]
[422987398,1779713440000,-500.0,8.219e-05,2]
[422987410,1779713440000,-500.0,8.219e-05,2]
[422987400,1779713440000,-500.0,8.219e-05,2]
[422987399,1779713440000,-500.0,8.219e-05,2]
[422987401,1779713440000,-500.0,8.219e-05,2]
[422987402,1779713440000,-500.0,8.219e-05,2]
[422987397,1779713440000,-500.0,8.219e-05,2]
[422987405,1779713440000,-500.0,8.219e-05,2]
[422987415,1779713440000,-501.96718369,8.219e-05,2]
[422987412,1779713440000,-500.0,8.219e-05,2]
[422987428,1779713440000,-500.0,8.219e-05,2]
[422987424,1779713440000,-500.0,8.219e-05,2]
[422987476,1779713440000,-500.0,8.219e-05,2]
[422987431,1779713440000,-500.0,8.219e-05,2]
[422987492,1779713440000,-501.33647689,8.219e-05,2]
[422987530,1779713440000,-500.0,8.219e-05,2]
[422987536,1779713440000,-500.0,8.219e-05,2]
[422987535,1779713440000,-500.0,8.219e-05,2]
[422987532,1779713440000,-500.0,8.219e-05,2]
[422987540,1779713440000,-500.34741288,8.219e-05,2]
[422987538,1779713440000,-500.64452405,8.219e-05,2]
[422987539,1779713440000,-500.0,8.219e-05,2]
[422987543,1779713440000,-309.88866391,8.219e-05,2]
[422987541,1779713440000,-500.18434627,8.219e-05,2]
[422987533,1779713440000,-500.0,8.219e-05,2]
[422987544,1779713440000,-190.41366849,8.219e-05,2]
[422987534,1779713440000,-500.0,8.219e-05,2]
[422987546,1779713440000,-500.0,8.219e-05,2]
[422987545,1779713440000,-1297.23,8.219e-05,2]
[422987549,1779713440000,-500.3078186,8.219e-05,2]
[422987552,1779713440000,-500.0,8.219e-05,2]
[422987548,1779713440000,-500.0,8.219e-05,2]
[422987551,1779713440000,-459.37844164,8.219e-05,2]
[422987550,1779713440000,-40.62155836,8.219e-05,2]
[422987547,1779713440000,-500.0,8.219e-05,2]
[422987478,1779713440000,-500.0,8.219e-05,2]
[422987514,1779713440000,-500.0,8.219e-05,2]
[422987528,1779713440000,-555.85,8.219e-05,2]
[422987542,1779713440000,-500.0,8.219e-05,2]
[422987553,1779713440000,-31.34859458,8.219e-05,2]
[422987493,1779713440000,-500.0,8.219e-05,2]
[422987526,1779713440000,-500.0,8.219e-05,2]
[422987497,1779713440000,-500.0,8.219e-05,2]
[422987495,1779713440000,-500.0,8.219e-05,2]
[422987480,1779713440000,-500.49348083,8.219e-05,2]
[422987482,1779713440000,-500.0,8.219e-05,2]
[422987484,1779713440000,-500.80550408,8.219e-05,2]
[422987490,1779713440000,-500.0,8.219e-05,2]
[422987501,1779713440000,-500.29020538,8.219e-05,2]
[422987486,1779713440000,-500.0,8.219e-05,2]
[422987487,1779713440000,-529.82239356,8.219e-05,2]
[422987499,1779713440000,-500.0,8.219e-05,2]
[422987505,1779713440000,-500.0,8.219e-05,2]
[422987503,1779713440000,-500.0,8.219e-05,2]
[422987509,1779713440000,-500.0,8.219e-05,2]
[422987522,1779713440000,-500.3225406,8.219e-05,2]
[422987524,1779713440000,-500.0,8.219e-05,2]
[422987520,1779713440000,-500.0,8.219e-05,2]
[422987513,1779713440000,-500.0,8.219e-05,2]
[422987507,1779713440000,-500.0,8.219e-05,2]
[422987518,1779713440000,-307.63894519,8.219e-05,2]
[422987516,1779713440000,-500.0,8.219e-05,2]
[422987511,1779713440000,-500.0,8.219e-05,2]
[422987568,1779713441000,-500.0,8.219e-05,2]
[422987573,1779713441000,-500.0,8.219e-05,2]
[422987572,1779713441000,-989.81,8.219e-05,2]
[422987570,1779713441000,-0.00276364,8.219e-05,2]
[422987574,1779713441000,-500.19298641,8.219e-05,2]
[422987571,1779713441000,-161.93325552,8.219e-05,2]
[422987576,1779713441000,-408.84876447,8.219e-05,2]
[422987569,1779713441000,-338.28442225,8.219e-05,2]
[422987567,1779713441000,-500.08442928,8.219e-05,2]
[422987563,1779713441000,-500.42423558,8.219e-05,2]
[422987566,1779713441000,-500.0,8.219e-05,2]
[422987561,1779713441000,-363.33313393,8.219e-05,2]
[422987564,1779713441000,-500.0,8.219e-05,2]
[422987560,1779713441000,-500.0,8.219e-05,2]
[422987562,1779713441000,-500.0,8.219e-05,2]
[422987559,1779713441000,-1286.6,8.219e-05,2]
[422987558,1779713441000,-500.0,8.219e-05,2]
[422987556,1779713441000,-468.65140542,8.219e-05,2]
[422987557,1779713441000,-500.53462493,8.219e-05,2]
[422987578,1779713441000,-500.0,8.219e-05,2]
[422987565,1779713441000,-500.0,8.219e-05,2]
[422987577,1779713441000,-500.0,8.219e-05,2]
[422987575,1779713441000,-91.15123553,8.219e-05,2]
[422987590,1779713441000,-500.0,8.219e-05,2]
[422987602,1779713441000,-236.70865981,8.219e-05,2]
[422987596,1779713441000,-500.8399301,8.219e-05,2]
[422987601,1779713441000,-104.73540361,8.219e-05,2]
[422987600,1779713441000,-498.65459639,8.219e-05,2]
[422987599,1779713441000,-500.0,8.219e-05,2]
[422987598,1779713441000,-500.0,8.219e-05,2]
[422987597,1779713441000,-500.0,8.219e-05,2]
[422987595,1779713441000,-500.34499482,8.219e-05,2]
[422987594,1779713441000,-500.0,8.219e-05,2]
[422987593,1779713441000,-500.0,8.219e-05,2]
[422987580,1779713441000,-196.79377812,8.219e-05,2]
[422987589,1779713441000,-500.0,8.219e-05,2]
[422987588,1779713441000,-500.38539459,8.219e-05,2]
[422987584,1779713441000,-616.81,8.219e-05,2]
[422987586,1779713441000,-500.0,8.219e-05,2]
[422987582,1779713441000,-500.0,8.219e-05,2]
[422987592,1779713441000,-500.0,8.219e-05,2]
[422987585,1779713441000,-500.0,8.219e-05,2]
[422987583,1779713441000,-500.0,8.219e-05,2]
[422987591,1779713441000,-518.92765065,8.219e-05,2]
[422987579,1779713441000,-304.24611069,8.219e-05,2]
[422987581,1779713441000,-500.33802268,8.219e-05,2]
[422987587,1779713441000,-500.0,8.219e-05,2]
[422987609,1779713443000,-500.0,8.219e-05,2]
[422987611,1779713443000,-237.21777465,8.219e-05,2]
[422987610,1779713443000,-500.0,8.219e-05,2]
[422987608,1779713443000,-263.29134019,8.219e-05,2]
[422987635,1779713444000,-500.37325397,8.219e-05,2]
[422987631,1779713444000,-305.70692813,8.219e-05,2]
[422987630,1779713444000,-500.42768074,8.219e-05,2]
[422987629,1779713444000,-1484.32,8.219e-05,2]
[422987634,1779713444000,-500.0,8.219e-05,2]
[422987637,1779713444000,-500.0,8.219e-05,2]
[422987627,1779713444000,-500.0,8.219e-05,2]
[422987628,1779713444000,-500.0,8.219e-05,2]
[422987626,1779713444000,-500.0,8.219e-05,2]
[422987624,1779713444000,-500.0,8.219e-05,2]
[422987617,1779713444000,-196.1276622,8.219e-05,2]
[422987613,1779713444000,-500.40497197,8.219e-05,2]
[422987618,1779713444000,-303.8723378,8.219e-05,2]
[422987623,1779713444000,-500.0,8.219e-05,2]
[422987616,1779713444000,-258.83699732,8.219e-05,2]
[422987614,1779713444000,-500.0,8.219e-05,2]
[422987615,1779713444000,-241.16300268,8.219e-05,2]
[422987612,1779713444000,-262.78222535,8.219e-05,2]
[422987621,1779713444000,-500.0,8.219e-05,2]
[422987632,1779713444000,-500.53865918,8.219e-05,2]
[422987642,1779713444000,-500.0,8.219e-05,2]
[422987625,1779713444000,-500.0,8.219e-05,2]
[422987656,1779713444000,-318.29435895,8.219e-05,2]
[422987655,1779713444000,-500.0,8.219e-05,2]
[422987653,1779713444000,-500.0,8.219e-05,2]
[422987654,1779713444000,-500.0,8.219e-05,2]
[422987633,1779713444000,-500.0,8.219e-05,2]
[422987647,1779713444000,-500.0,8.219e-05,2]
[422987650,1779713444000,-500.26445615,8.219e-05,2]
[422987652,1779713444000,-500.29228217,8.219e-05,2]
[422987644,1779713444000,-500.0,8.219e-05,2]
[422987651,1779713444000,-500.0,8.219e-05,2]
[422987639,1779713444000,-500.50733457,8.219e-05,2]
[422987649,1779713444000,-555.75,8.219e-05,2]
[422987641,1779713444000,-500.53867313,8.219e-05,2]
[422987643,1779713444000,-500.0,8.219e-05,2]
[422987640,1779713444000,-500.0,8.219e-05,2]
[422987645,1779713444000,-500.24569413,8.219e-05,2]
[422987648,1779713444000,-500.0,8.219e-05,2]
[422987638,1779713444000,-500.0,8.219e-05,2]
[422987636,1779713444000,-500.0,8.219e-05,2]
[422987646,1779713444000,-500.0,8.219e-05,2]
[422987658,1779713446000,151.0,0.000178,120]
[422987995,1779713449000,-500.0,8.219e-05,2]
[422987990,1779713449000,-500.0,8.219e-05,2]
[422987987,1779713449000,-500.39662144,8.219e-05,2]
[422987986,1779713449000,-500.0,8.219e-05,2]
[422987989,1779713449000,-500.2359955,8.219e-05,2]
[422987984,1779713449000,-500.0,8.219e-05,2]
[422987983,1779713449000,-500.0,8.219e-05,2]
[422987982,1779713449000,-181.70564105,8.219e-05,2]
[422987985,1779713449000,-500.0,8.219e-05,2]
[422987988,1779713449000,-500.0,8.219e-05,2]
[422987993,1779713449000,-16.24835841,8.219e-05,2]
[422987992,1779713449000,-500.0,8.219e-05,2]
[422988003,1779713449000,-402.31104959,8.219e-05,2]
[422988001,1779713449000,-500.25872218,8.219e-05,2]
[422988000,1779713449000,-500.0,8.219e-05,2]
[422987999,1779713449000,-500.0,8.219e-05,2]
[422987991,1779713449000,-500.0,8.219e-05,2]
[422988002,1779713449000,-500.0,8.219e-05,2]
[422987996,1779713449000,-501.23850762,8.219e-05,2]
[422987997,1779713449000,-418.13061001,8.219e-05,2]
[422987994,1779713449000,-859.58164159,8.219e-05,2]
[422987998,1779713449000,-500.0,8.219e-05,2]
[422988004,1779713476000,151.0,0.000178,120]
[422988005,1779713516000,151.0,0.000178,120]
[422988006,1779713557000,151.0,0.000178,120]
[422988009,1779713605000,151.0,0.000178,120]
[422988010,1779713646000,151.0,0.000178,120]
[422988012,1779713686000,151.0,0.000178,120]
[422988013,1779713711000,172.821089,6.45e-05,18]
[422988017,1779713712000,172.821089,6.45e-05,86]
[422988016,1779713712000,172.821089,6.45e-05,69]
[422988015,1779713712000,172.821089,6.45e-05,52]
[422988014,1779713712000,172.821089,6.45e-05,35]
[422988018,1779713713000,172.821089,6.45e-05,103]
[422988019,1779713713000,172.821089,6.45e-05,119]
[422988020,1779713725000,151.0,0.000178,120]
[422988022,1779713750000,1102.64,6.508e-05,60]
[422988021,1779713750000,1323.17,0.0001691,120]
[422988026,1779713857000,165.754001,3.302e-05,2]
[422988025,1779713857000,165.754001,3.107e-05,2]
[422988024,1779713857000,165.754001,2.913e-05,2]
[422988023,1779713857000,165.754001,2.719e-05,2]
[422988030,1779713858000,165.754001,4.079e-05,2]
[422988029,1779713858000,165.754001,3.884e-05,2]
[422988028,1779713858000,165.754001,3.69e-05,2]
[422988027,1779713858000,165.754001,3.496e-05,2]
[422988031,1779713859000,165.754001,4.273e-05,2]
[422988033,1779713859000,165.754001,4.661e-05,2]
[422988034,1779713859000,165.754001,4.855e-05,2]
[422988032,1779713859000,165.754001,4.467e-05,2]
[422988036,1779713862000,299.28362691,4.966e-05,2]
[422988040,1779713873000,-166.6143561,5.479e-05,2]
[422988039,1779713873000,-165.754001,5.438e-05,2]
[422988041,1779713873000,-4336.1236409,6.241e-05,2]
[422988038,1779713873000,-165.754001,5.244e-05,2]
[422988037,1779713873000,-165.754001,5.05e-05,2]
[422988043,1779713875000,-4336.1236409,6.304e-05,2]
[422988042,1779713875000,-663.8763591,6.241e-05,2]
[422988044,1779713876000,-663.8763591,6.304e-05,2]
[422988045,1779713876000,-300.0,6.368e-05,2]
[422988046,1779713876000,-500.0,6.369e-05,2]
[422988049,1779713876000,-500.0,6.369e-05,2]
[422988050,1779713876000,-500.0,6.369e-05,2]
[422988052,1779713876000,-500.0,6.369e-05,2]
[422988047,1779713876000,-212.25370486,6.369e-05,2]
[422988051,1779713876000,-500.0,6.369e-05,2]
[422988055,1779713876000,-209.78493765,6.369e-05,2]
[422988054,1779713876000,-353.46342259,6.369e-05,2]
[422988053,1779713876000,-288.4409389,6.369e-05,2]
[422988048,1779713876000,-472.1806369,6.369e-05,2]
[422988057,1779713877000,-500.0,6.369e-05,2]
[422988059,1779713877000,-582.112532,6.369e-05,2]
[422988056,1779713877000,-290.21506235,6.369e-05,2]
[422988060,1779713877000,-500.0,6.369e-05,2]
[422988058,1779713877000,-500.0,6.369e-05,2]
[422988064,1779713877000,-500.0,6.369e-05,2]
[422988061,1779713877000,-500.0,6.369e-05,2]
[422988066,1779713877000,-127.67240565,6.369e-05,2]
[422988062,1779713877000,-500.0,6.369e-05,2]
[422988063,1779713877000,-500.0,6.369e-05,2]
[422988065,1779713877000,-500.0,6.369e-05,2]
[422988076,1779713878000,-500.0,6.369e-05,2]
[422988072,1779713878000,-500.0,6.369e-05,2]
[422988075,1779713878000,-500.0,6.369e-05,2]
[422988074,1779713878000,-500.0,6.369e-05,2]
[422988073,1779713878000,-500.0,6.369e-05,2]
[422988071,1779713878000,-500.0,6.369e-05,2]
[422988070,1779713878000,-500.0,6.369e-05,2]
[422988069,1779713878000,-500.0,6.369e-05,2]
[422988067,1779713878000,-372.32759435,6.369e-05,2]
[422988068,1779713878000,-500.0,6.369e-05,2]
[422988077,1779713878000,-127.67240565,6.369e-05,2]
[422988078,1779713879000,-372.32759435,6.369e-05,2]
[422988079,1779713879000,-500.0,6.369e-05,2]
[422988080,1779713879000,-500.0,6.369e-05,2]
[422988082,1779713879000,-500.0,6.369e-05,2]
[422988081,1779713879000,-500.0,6.369e-05,2]
[422988085,1779713879000,-500.0,6.369e-05,2]
[422988084,1779713879000,-500.0,6.369e-05,2]
[422988086,1779713879000,-500.0,6.369e-05,2]
[422988088,1779713879000,-127.67240565,6.369e-05,2]
[422988083,1779713879000,-500.0,6.369e-05,2]
[422988087,1779713879000,-500.0,6.369e-05,2]
[422988093,1779713880000,-500.0,6.369e-05,2]
[422988089,1779713880000,-372.32759435,6.369e-05,2]
[422988090,1779713880000,-500.0,6.369e-05,2]
[422988092,1779713880000,-166.22202508,6.369e-05,2]
[422988091,1779713880000,-500.0,6.369e-05,2]
[422988094,1779713880000,-500.0,6.369e-05,2]
[422988097,1779713880000,-1661.45038057,6.369e-05,2]
[422988096,1779713880000,-300.0,6.369e-05,2]
[422988095,1779713880000,-500.0,6.369e-05,2]
[422988098,1779713881000,-5000.0,6.369e-05,2]
[422988099,1779713882000,-5000.0,6.369e-05,2]
[422988100,1779713883000,-300.0,6.368e-05,2]
[422988101,1779713883000,-4700.0,6.369e-05,2]
[422988102,1779713884000,-5000.0,6.305e-05,2]
[422988103,1779713885000,-5000.0,6.369e-05,2]
[422988104,1779713886000,-5000.0,6.369e-05,2]
[422988105,1779713887000,-5000.0,6.369e-05,2]
[422988106,1779713888000,-5000.0,6.369e-05,2]
[422988108,1779713889000,-5000.0,6.369e-05,2]
[422988109,1779713890000,-5000.0,6.369e-05,2]
[422988111,1779713891000,-1200.0,6.434e-05,2]
[422988112,1779713891000,-161.45038057,6.45e-05,2]
[422988110,1779713891000,-3638.54961943,6.369e-05,2]
[422988114,1779713892000,-300.0,6.499e-05,2]
[422988113,1779713892000,-11.37070843,6.45e-05,2]
[422988115,1779713892000,-151.0,6.5e-05,2]
[422988117,1779713892000,-300.0,6.629e-05,2]
[422988118,1779713892000,-300.0,6.629e-05,2]
[422988119,1779713892000,-300.0,6.629e-05,2]
[422988116,1779713892000,-151.0,6.5e-05,2]
[422988120,1779713892000,-300.0,6.629e-05,2]
[422988122,1779713892000,-300.0,6.629e-05,2]
[422988123,1779713892000,-300.0,6.629e-05,2]
[422988130,1779713892000,-300.0,6.629e-05,2]
[422988129,1779713892000,-300.0,6.629e-05,2]
[422988124,1779713892000,-300.0,6.629e-05,2]
[422988131,1779713892000,-186.62929157,6.629e-05,2]
[422988125,1779713892000,-300.0,6.629e-05,2]
[422988126,1779713892000,-300.0,6.629e-05,2]
[422988128,1779713892000,-300.0,6.629e-05,2]
[422988127,1779713892000,-300.0,6.629e-05,2]
[422988121,1779713892000,-300.0,6.629e-05,2]
[422988132,1779713893000,-113.37070843,6.629e-05,2]
[422988137,1779713893000,-587.0,7.705e-05,2]
[422988138,1779713893000,-448.99240951,8e-05,2]
[422988136,1779713893000,-521.0,7.077e-05,2]
[422988134,1779713893000,-353.15467976,6.966e-05,2]
[422988135,1779713893000,-420.0,7.005e-05,2]
[422988133,1779713893000,-151.0,6.879e-05,2]
[422988139,1779713898000,2405.4822023,8e-05,2]
[422988140,1779713903000,-2594.5177977,8e-05,2]
[422988141,1779713906000,2405.4822023,7.92e-05,2]
[422988142,1779713910000,-2594.5177977,7.92e-05,2]
[422988143,1779713914000,312.26090311,5.003e-05,2]
[422988144,1779713919000,151.0,6.5e-05,2]
[422988145,1779713921000,1942.22129919,8e-05,2]
[422988146,1779714053000,-6956.0,6.531e-05,2]
[422988147,1779714054000,-561.0,6.531e-05,2]
[422988150,1779714064000,-300.0,6.661e-05,2]
[422988148,1779714064000,-6067.4006244,6.531e-05,2]
[422988149,1779714064000,-300.0,6.66e-05,2]
[422988152,1779714065000,-300.0,6.661e-05,2]
[422988151,1779714065000,-300.0,6.661e-05,2]
[422988154,1779714065000,-300.0,6.661e-05,2]
[422988153,1779714065000,-300.0,6.661e-05,2]
[422988155,1779714065000,-300.0,6.661e-05,2]
[422988160,1779714065000,-300.0,6.661e-05,2]
[422988156,1779714065000,-300.0,6.661e-05,2]
[422988157,1779714065000,-300.0,6.661e-05,2]
[422988159,1779714065000,-300.0,6.661e-05,2]
[422988162,1779714065000,-32.5993756,6.661e-05,2]
[422988161,1779714065000,-300.0,6.661e-05,2]
[422988158,1779714065000,-300.0,6.661e-05,2]
[422988164,1779714082000,-500.0,6.53e-05,2]
[422988163,1779714082000,-500.0,6.53e-05,2]
[422988166,1779714082000,-500.0,6.53e-05,2]
[422988168,1779714082000,-500.0,6.53e-05,2]
[422988165,1779714082000,-564.67917022,6.53e-05,2]
[422988169,1779714082000,-646.62220251,6.53e-05,2]
[422988171,1779714082000,-300.0,6.661e-05,2]
[422988170,1779714082000,-267.4006244,6.661e-05,2]
[422988172,1779714082000,-285.29800287,6.661e-05,2]
[422988167,1779714082000,-500.0,6.53e-05,2]
[422988176,1779714099000,-720.0,7.473e-05,2]
[422988175,1779714099000,-420.0,7.326e-05,2]
[422988173,1779714099000,-14.70199713,6.661e-05,2]
[422988174,1779714099000,-600.0,6.793e-05,2]
[422988177,1779714101000,151.0,6.5e-05,2]
[422988178,1779714103000,2164.55850747,7.6e-05,2]
[422988179,1779714105000,500.0,6.53e-05,2]
[422988181,1779714153000,-708.0,7.524e-05,2]
[422988180,1779714153000,-4092.0,7.449e-05,2]
[422988183,1779714197000,-292.23486078,7.335e-05,2]
[422988182,1779714197000,-908.0,7.298e-05,2]
[422988184,1779714197000,-151.0,7.372e-05,2]
[422988185,1779714197000,-3749.76513922,7.524e-05,2]
[422988188,1779714243000,-4163.69600561,7.6e-05,2]
[422988186,1779714243000,-294.06913361,7.523e-05,2]
[422988187,1779714243000,-542.23486078,7.524e-05,2]
[422988189,1779714251000,-5000.0,7.524e-05,2]
[422988190,1779714272000,-5000.0,7.524e-05,2]
[422988192,1779714310000,-5000.0,7.449e-05,2]
[422988194,1779714341000,-5000.0,6.997e-05,2]
[422988196,1779714353000,-5000.0,6.997e-05,2]
[422988201,1779714374000,-5000.0,6.997e-05,2]
[422988203,1779714396000,-5000.0,6.997e-05,2]
[422988206,1779714419000,-5000.0,6.997e-05,2]
[422988207,1779714440000,-5000.0,6.997e-05,2]
[422988208,1779714462000,-5000.0,6.997e-05,2]
[422988209,1779714484000,-5000.0,6.997e-05,2]
[422988211,1779714510000,-4798.0,6.927e-05,2]
[422988234,1779714632000,-686.34205459,6.997e-05,2]
[422988232,1779714632000,-202.0,6.927e-05,2]
[422988343,1779714641000,-1619.27965824,6.997e-05,2]
[422988373,1779715223000,298.6760905,0.00017808,120]
[422988383,1779715336000,209.64740544,0.00017,120]
[422988384,1779715342000,1668.69857719,0.000178,120]
[422988390,1779715389000,190.77963159,0.00017808,120]
[422988396,1779715549000,595.41,0.00014246,120]
[422988397,1779715550000,496.19,5.48e-05,60]
[422988439,1779715832000,-877.54214158,5.121e-05,2]
[422988440,1779715832000,-605.52935036,5.121e-05,2]
[422988460,1779715838000,-3516.92850806,5.121e-05,2]
[422988461,1779715838000,-85.35466527,5.173e-05,2]
[422988462,1779715838000,-4914.64533473,5.173e-05,2]
[422988468,1779715838000,-2208.35856288,5.224e-05,2]
[422988463,1779715838000,-2208.35856288,5.224e-05,2]
[422988466,1779715838000,-2208.35856288,5.224e-05,2]
[422988467,1779715838000,-2208.35856288,5.224e-05,2]
[422988465,1779715838000,-2208.35856288,5.224e-05,2]
[422988464,1779715838000,-2208.35856288,5.224e-05,2]
[422988490,1779715839000,-300.0,5.382e-05,2]
[422988487,1779715839000,-300.0,5.382e-05,2]
[422988488,1779715839000,-300.0,5.382e-05,2]
[422988489,1779715839000,-300.0,5.382e-05,2]
[422988485,1779715839000,-2513.81186365,5.277e-05,2]
[422988497,1779715839000,-300.0,5.382e-05,2]
[422988496,1779715839000,-300.0,5.382e-05,2]
[422988486,1779715839000,-300.0,5.382e-05,2]
[422988480,1779715839000,-2208.35856288,5.224e-05,2]
[422988482,1779715839000,-300.0,5.276e-05,2]
[422988481,1779715839000,-5000.0,5.225e-05,2]
[422988477,1779715839000,-2208.35856288,5.224e-05,2]
[422988491,1779715839000,-300.0,5.382e-05,2]
[422988478,1779715839000,-2208.35856288,5.224e-05,2]
[422988475,1779715839000,-2208.35856288,5.224e-05,2]
[422988476,1779715839000,-2208.35856288,5.224e-05,2]
[422988472,1779715839000,-2208.35856288,5.224e-05,2]
[422988474,1779715839000,-2208.35856288,5.224e-05,2]
[422988484,1779715839000,-2642.18813635,5.277e-05,2]
[422988483,1779715839000,-1200.0,5.276e-05,2]
[422988473,1779715839000,-2208.35856288,5.224e-05,2]
[422988471,1779715839000,-2208.35856288,5.224e-05,2]
[422988470,1779715839000,-2208.35856288,5.224e-05,2]
[422988469,1779715839000,-2208.35856288,5.224e-05,2]
[422988479,1779715839000,-2208.35856288,5.224e-05,2]
[422988492,1779715839000,-300.0,5.382e-05,2]
[422988508,1779715839000,-587.0,6.384e-05,2]
[422988494,1779715839000,-300.0,5.382e-05,2]
[422988517,1779715839000,-152.0,7.288e-05,2]
[422988521,1779715839000,-34822.91808427,7.6e-05,2]
[422988516,1779715839000,-152.0,7.279e-05,2]
[422988515,1779715839000,-2890.32109348,7.225e-05,2]
[422988514,1779715839000,-823.0,7.023e-05,2]
[422988520,1779715839000,-345.65759301,7.576e-05,2]
[422988513,1779715839000,-720.0,6.655e-05,2]
[422988511,1779715839000,-151.0,6.5e-05,2]
[422988518,1779715839000,-152.0,7.303e-05,2]
[422988519,1779715839000,-864.0,7.32e-05,2]
[422988512,1779715839000,-151.0,6.652e-05,2]
[422988504,1779715839000,-259.81368636,6.059e-05,2]
[422988495,1779715839000,-300.0,5.382e-05,2]
[422988505,1779715839000,-1419.988344,6.226e-05,2]
[422988499,1779715839000,-300.0,5.382e-05,2]
[422988509,1779715839000,-2766.64603049,6.483e-05,2]
[422988510,1779715839000,-151.0,6.5e-05,2]
[422988498,1779715839000,-300.0,5.382e-05,2]
[422988493,1779715839000,-300.0,5.382e-05,2]
[422988506,1779715839000,-220.1823575,6.302e-05,2]
[422988501,1779715839000,-292.93016356,5.576e-05,2]
[422988502,1779715839000,-420.0,5.804e-05,2]
[422988507,1779715839000,-2679.07463711,6.326e-05,2]
[422988500,1779715839000,-300.0,5.382e-05,2]
[422988503,1779715839000,-600.0,6.05e-05,2]
[422988541,1779715844000,-882.18973149,5.224e-05,2]
[422988532,1779715844000,-1501.68382276,5.224e-05,2]
[422988535,1779715844000,-1501.68382276,5.224e-05,2]
[422988533,1779715844000,-1501.68382276,5.224e-05,2]
[422988534,1779715844000,-1501.68382276,5.224e-05,2]
[422988536,1779715844000,-1501.68382276,5.224e-05,2]
[422988537,1779715844000,-1501.68382276,5.224e-05,2]
[422988539,1779715844000,-316.87269128,5.224e-05,2]
[422988540,1779715844000,-302.62139999,5.224e-05,2]
[422988543,1779715844000,-1501.68382276,5.224e-05,2]
[422988549,1779715844000,-106.65028586,6.116e-05,7]
[422988542,1779715844000,-1501.68382276,5.224e-05,2]
[422988547,1779715844000,-152.0,6.116e-05,7]
[422988554,1779715844000,-401.92001082,7.6e-05,2]
[422988553,1779715844000,-2682.75126377,7.6e-05,2]
[422988552,1779715844000,-1335.28898699,7.6e-05,2]
[422988551,1779715844000,-14626.42105865,7.6e-05,2]
[422988550,1779715844000,-152.0,6.119e-05,7]
[422988538,1779715844000,-1501.68382276,5.224e-05,2]
[422988545,1779715844000,-1501.68382276,5.224e-05,2]
[422988548,1779715844000,-45.34971414,6.116e-05,7]
[422988562,1779715847000,-18388.30750984,7.6e-05,2]
[422988561,1779715847000,-3875.2381898,7.6e-05,2]
[422988559,1779715847000,-5000.0,7.524e-05,2]
[422988560,1779715847000,-92442.93744851,7.6e-05,2]
[422988564,1779715869000,151.0,6.5e-05,2]
[422988570,1779715872000,159.44567121,5.224e-05,2]
[422988569,1779715872000,797.51586803,5.224e-05,2]
[422988568,1779715872000,797.51586803,5.224e-05,2]
[422988567,1779715872000,797.51586803,5.224e-05,2]
[422988566,1779715872000,797.51586803,5.224e-05,2]
[422988565,1779715872000,797.51586803,5.224e-05,2]
[422988583,1779716306000,-152.0,6.114e-05,7]
[422988584,1779716306000,-4848.0,7.152e-05,2]
[422988586,1779716307000,-300.0,7.223e-05,2]
[422988587,1779716307000,-4548.0,7.224e-05,2]
[422988585,1779716307000,-152.0,7.152e-05,2]
[422988590,1779716308000,-500.0,7.298e-05,2]